Cogmind - Beta 14 @@@ ROGUE MODE // 2024.09.30 @ 14:05:15 Player: Cazador Result: Destroyed by G-47 Trooper with Particle Gun Performance ------------- Evolutions (2) 1000 Regions Visited (4) 800 Robots Destroyed (24) 120 Value Destroyed (695) 695 Prototype IDs (1) 20 Alien Tech Used (0) 0 Bonus (0) 0 TOTAL SCORE: 2635 Bonus ------- None Cogmind --------- Core Integrity 0/550 Matter 300/300 Energy 100/100 System Corruption 7% Temperature Cool (9) Movement Core (50) Location -8/Materials Parts ------- > --- POWER (2) -------- (None) > --- PROPULSION (2) --- (None) > --- UTILITY (4) ------ (None) > --- WEAPON (3) ------- (None) > --- INVENTORY (5) ---- Medium Storage Unit Medium Storage Unit Hacking Suite Peak State ------------ > --- POWER ------------ Ion Engine Nuclear Core > --- PROPULSION ------- Aluminum Leg Aluminum Leg > --- UTILITY ---------- Large Storage Unit Targeting Computer Splice Drone Bay > --- WEAPON ----------- Particle Gun Assault Rifle > --- INVENTORY -------- Aluminum Leg Aluminum Leg Heat Sink Improved Heat Sink Medium Storage Unit Medium Storage Unit High-capacity Matter Pod Compact Matter Pod Visual Processing Unit Terrain Scanner Hacking Suite Light Assault Rifle Light Assault Rifle Grenade Launcher [Rating: 20] Favorites ----------- Power Nuclear Core Engine Light Ion Engine Power Core Nuclear Core Propulsion Aluminum Leg Treads Light Treads Leg Aluminum Leg Wheel Wheel Utility Large Storage Unit Device Splice Drone Bay Storage Large Storage Unit Processor Targeting Computer Hackware Hacking Suite Protection Light Armor Plating Weapon Light Assault Rifle Energy Gun Particle Gun Ballistic Gun Light Assault Rifle Launcher Grenade Launcher Build | -11 -10 -10 -9 -8 ------- Run | Yrd Mat Min Mat Mat Slots Evolved 4 | . . . 2 2 Power 1 | . . . 1 . Propulsion . | . . . . . Utility 2 | . . . 1 1 Weapon 1 | . . . . 1 Parts Attached 44 | 10 7 7 12 8 Power 10 | 2 1 2 3 2 Engine 7 | 2 1 2 1 1 Core 3 | . . . 2 1 Reactor . | . . . . . Propulsion 12 | 5 1 2 2 2 Treads 2 | . . . 2 . Leg 8 | 3 1 2 . 2 Wheel 2 | 2 . . . . Hover . | . . . . . Flight . | . . . . . Utility 9 | . 2 1 4 2 Device 3 | . . 1 . 2 Storage 2 | . 2 . . . Processor 2 | . . . 2 . Hackware 1 | . . . 1 . Protection 1 | . . . 1 . Artifact . | . . . . . Weapon 13 | 3 3 2 3 2 Energy Gun 3 | . . 1 1 1 Energy Cannon . | . . . . . Ballistic Gun 8 | 3 2 1 2 . Ballistic Cannon . | . . . . . Launcher 2 | . 1 . . 1 Special Weapon . | . . . . . Impact Weapon . | . . . . . Slashing Weapon . | . . . . . Piercing Weapon . | . . . . . Special Melee Weapon . | . . . . . Unidentified Prototypes 1 | . . 1 . . Parts Lost 18 | . . 1 1 16 Power 6 | . . 1 1 4 Propulsion 4 | . . . . 4 Utility 5 | . . . . 5 Weapon 3 | . . . . 3 Highest Loss Streak 14 | . . 1 1 14 To Critical Strikes . | . . . . . Average Slot Usage (%) 93 | . 93 99 97 67 Engine 10 | . 14 13 8 5 Core 4 | . . . 11 6 Treads 4 | . . . 8 11 Leg 19 | . 28 28 13 . Device 5 | . . 7 5 6 Storage 15 | . 22 20 11 6 Processor 4 | . . . 11 6 Protection 2 | . . . 4 5 Energy Gun 10 | . . 13 12 12 Ballistic Gun 14 | . 27 14 8 6 Peak Build Rating 20 | 5 8 15 20 19 Average Rating 12 | 4 6 12 17 13 On Entrance 8 | . 5 8 15 15 Naked Turns 30 | . . . . 30 Heaviest Build 45 | 5 32 38 45 45 Greatest Support 40 | 20 20 20 40 40 Greatest Overweight (x) 10 | . 1 1 2 10 Average Overweight (x) . | . . 1 1 . Largest Inventory Capacity 15 | 5 15 15 15 15 Average Capacity 13 | 5 11 15 15 12 Most Carried 15 | 5 13 15 15 12 Average Carried 11 | 3 8 13 13 9 Final Capacity 15 | 5 15 15 15 5 Final Carried 15 | 5 12 15 13 3 Class Distribution -------------------- 59% | Mutant 34% | Scavenger-Mutant 6% | Scavenger-Gunner Dominant Class ---------------- Mutant | -10/Materials Mutant | -10/Mines Scavenger-Mutant | -9/Materials Scavenger-Gunner | -8/Materials Resources | -11 -10 -10 -9 -8 ----------- Run | Yrd Mat Min Mat Mat Matter Collected 1161 | 109 51 545 365 91 Remotely . | . . . . . Salvage Created 699 | 39 134 245 198 83 Parts 49 | 3 14 13 18 1 Haulers Intercepted . | . . . . . Recyclers Shooed . | . . . . . Parts Field Recycled . | . . . . . Retrieved Matter . | . . . . . Parts Self-Destructed . | . . . . . Prevented . | . . . . . Kills | -11 -10 -10 -9 -8 ------- Run | Yrd Mat Min Mat Mat Combat Hostiles Destroyed 19 | 1 6 6 4 2 Guns 14 | 1 1 6 4 2 AOE 5 | . 5 . . . Classes Destroyed 7 | 1 3 1 1 1 Worker 1 | . . . . 1 Builder 2 | . 1 . 1 . Tunneler 1 | . . 1 . . Watcher 1 | . 1 . . . Swarmer 3 | . 3 . . . Grunt 14 | 1 3 6 2 2 Sentry 2 | . . . 2 . Best Kill Streak 7 | 1 7 5 3 3 Combat Bots Only 5 | 1 5 4 2 2 Max Kills in Single Turn 3 | 1 3 1 1 1 Gunslinging . | . . . . . Exploded 2 | . 2 . . . Melee . | . . . . . Uniques/NPCs Destroyed . | . . . . . Combat | -11 -10 -10 -9 -8 -------- Run | Yrd Mat Min Mat Mat Hostile Shots Fired 189 | 11 19 28 40 91 Missed 27 | 3 4 2 9 9 Damage Taken 2441 | 89 145 308 430 1469 Core 738 | 32 39 59 58 550 Absorbed by Shields . | . . . . . Core Remaining (%) 73 | 87 . 48 85 . Volleys Fired 67 | 9 8 18 19 13 Largest 3 | 2 2 2 2 3 Hottest 141 | 40 50 85 121 141 Shots Fired 140 | 18 16 36 38 32 Gun 136 | 18 13 36 38 31 Cannon . | . . . . . Launcher 4 | . 3 . . 1 Special . | . . . . . Kinetic 82 | 18 13 24 15 12 Thermal 54 | . . 12 23 19 Explosive 4 | . 3 . . 1 Electromagnetic . | . . . . . Robot Hit Streak 12 | 4 6 12 11 9 Robot Miss Streak 3 | 3 1 1 2 2 Penetration Max . | . . . . . Secondary Targets 3 | . . . 1 2 Max Gunslinging Chain 1 | . . . 1 1 Shots Hit Robots 101 | 9 11 29 26 26 Core Hits 64 | 3 13 13 10 25 Critical Kills 1 | . 1 . . . Critical Parts Destroyed . | . . . . . Critical Strikes 6 | . 1 . 3 2 Burn 5 | . . . 3 2 Destroy 1 | . 1 . . . Melee Attacks . | . . . . . Impact . | . . . . . Slashing . | . . . . . Piercing . | . . . . . Sneak Attacks . | . . . . . Combat Hostiles . | . . . . . Follow-up Attacks . | . . . . . Damage Inflicted 1973 | 102 519 412 382 558 Guns 1323 | 102 83 412 382 344 Cannons . | . . . . . Explosions 631 | . 436 . . 195 Melee . | . . . . . Ramming 19 | . . . . 19 Kinetic 607 | 102 83 223 120 79 Thermal 716 | . . 189 262 265 Explosive 631 | . 436 . . 195 Electromagnetic . | . . . . . Impact . | . . . . . Slashing . | . . . . . Piercing . | . . . . . Highest Corruption 7 | . . . . 7 Average Corruption 3 | . . . . 3 Corruption Purged . | . . . . . Corruption Blocked . | . . . . . Effects 3 | . . . . 3 Message Errors 1 | . . . . 1 Matter Fused 1 | . . . . 1 Heat Flow Errors 1 | . . . . 1 Overload Shots . | . . . . . Overflow Damage 22 | . 11 . . 11 Projectiles . | . . . . . Explosions 22 | . 11 . . 11 Melee . | . . . . . Knockbacks . | . . . . . Impact . | . . . . . Kinetic . | . . . . . Secondary . | . . . . . Self-Inflicted Damage 30 | . . . . 30 Shots 1 | . . . . 1 Rammed 7 | . . . . 7 Targets Rammed 7 | . . . . 7 Kicked . | . . . . . Crushed . | . . . . . Highest Temperature 693 | 12 6 342 384 693 Average Temperature 217 | 6 4 140 166 418 Received Heat Transfer 1155 | 48 42 171 147 747 Effects 39 | . . 1 7 31 Shutdowns 8 | . . . 2 6 Energy Bleed 3 | . . . 1 2 Interference 8 | . . . 4 4 Matter Decay 2 | . . . . 2 Short Circuit 3 | . . . . 3 Damage (minor) 2 | . . 1 . 1 Damage (major) 12 | . . . . 12 Damage (core) 1 | . . . . 1 Siege Activations . | . . . . . Robots Corrupted . | . . . . . Combat Hostiles . | . . . . . Parts Fried . | . . . . . Impact Corruptions . | . . . . . Robots Melted . | . . . . . Combat Hostiles . | . . . . . Parts Melted 4 | . . . 3 1 Heat Transferred 1963 | . . 444 851 668 Parts Sabotaged . | . . . . . Parts Stolen . | . . . . . Parts Stripped . | . . . . . Power Chain Reactions . | . . . . . Alert | -11 -10 -10 -9 -8 ------- Run | Yrd Mat Min Mat Mat Peak Influence 175 | 20 175 107 118 61 Initial 67 | . 13 67 33 31 Average 50 | 10 38 77 50 27 Maximum Alert Level . | . . . . . Low Security (%) 100 | 100 100 100 100 100 Level 1 . | . . . . . Level 2 . | . . . . . Level 3 . | . . . . . Level 4 . | . . . . . Level 5 . | . . . . . High Security . | . . . . . Max Security . | . . . . . Squads Dispatched 3 | . 1 . 1 1 Investigation 1 | . . . 1 . Extermination . | . . . . . Reinforcement 2 | . 1 . . 1 Assault . | . . . . . Garrison . | . . . . . Intercept . | . . . . . Searches Triggered . | . . . . . Construction Impeded . | . . . . . Haulers Reinforced . | . . . . . Active Scanning Responses . | . . . . . Cargo Convoy Interrupts . | . . . . . Stealth | -11 -10 -10 -9 -8 --------- Run | Yrd Mat Min Mat Mat Distress Signals 2 | . 2 . . . Communications Jammed . | . . . . . Distress Signals . | . . . . . Times Spotted 35 | 1 10 6 6 12 Peak Tracking Total 6 | 1 6 2 2 5 Tactical Retreats 1 | . . . . 1 Traps | -11 -10 -10 -9 -8 ------- Run | Yrd Mat Min Mat Mat Traps Triggered 1 | . . . 1 . Indirectly . | . . . . . Trap Hack Attempts . | . . . . . Triggered . | . . . . . Disarmed . | . . . . . Reprogrammed . | . . . . . Reused . | . . . . . Traps Extracted . | . . . . . Installed . | . . . . . Triggered . | . . . . . Machines | -11 -10 -10 -9 -8 ---------- Run | Yrd Mat Min Mat Mat Machines Disabled 1 | . . . 1 . Max in Single Turn 1 | . . . 1 . Machines Repaired . | . . . . . Machines Dismantled . | . . . . . Machines Sabotaged . | . . . . . Overloaded Fab Kills . | . . . . . Hacking | -11 -10 -10 -9 -8 --------- Run | Yrd Mat Min Mat Mat Machines Accessed 2 | . . 1 1 . Terminals 1 | . . . 1 . Fabricators . | . . . . . Repair Stations . | . . . . . Recycling Units . | . . . . . Scanalyzers . | . . . . . Garrison Access . | . . . . . Total Hacks 2 | . . 1 1 . Successful 1 | . . 1 . . Failed 1 | . . . 1 . Catastrophic . | . . . . . Database Lockouts . | . . . . . Manual . | . . . . . Terminals 1 | . . . 1 . Fabricators . | . . . . . Repair Stations . | . . . . . Recycling Units . | . . . . . Scanalyzers . | . . . . . Garrison Access . | . . . . . Terminal Hacks 1 | . . 1 . . Open Door 1 | . . 1 . . Fabricator Hacks . | . . . . . Repair Station Hacks . | . . . . . Recycling Unit Hacks . | . . . . . Scanalyzer . | . . . . . Garrison Access Hacks . | . . . . . Unauthorized Hacks . | . . . . . Terminals . | . . . . . Fabricators . | . . . . . Repair Stations . | . . . . . Recycling Units . | . . . . . Scanalyzers . | . . . . . Garrison Access . | . . . . . Data Cores Recovered . | . . . . . Used . | . . . . . Hacking Detections 1 | . . . 1 . Full Trace Events . | . . . . . Feedback Events . | . . . . . Feedback Blocked . | . . . . . Robot Schematics Acquired . | . . . . . Robots Built . | . . . . . Authchips . | . . . . . Time . | . . . . . Total Robot Build Rating . | . . . . . Part Schematics Acquired . | . . . . . Parts Built . | . . . . . Authchips . | . . . . . Time . | . . . . . Total Part Build Rating . | . . . . . Parts Repaired . | . . . . . Time . | . . . . . Parts Recycled . | . . . . . Recycled Matter . | . . . . . Retrieved Matter . | . . . . . Retrieved Components . | . . . . . Parts Scanalyzed . | . . . . . Part Schematics Acquired . | . . . . . Parts Damaged . | . . . . . Bothacking | -11 -10 -10 -9 -8 ------------ Run | Yrd Mat Min Mat Mat Used RIF Installer . | . . . . . Robots Hacked . | . . . . . Non-combat . | . . . . . Combat . | . . . . . Robot Hacks Applied . | . . . . . Relay Couplers Released . | . . . . . Fabnet Peak Effective % . | . . . . . Robots Rewired . | . . . . . Allies Hacked . | . . . . . Hacks Repelled . | . . . . . Allies | -11 -10 -10 -9 -8 -------- Run | Yrd Mat Min Mat Mat Total Allies . | . . . . . Largest Group . | . . . . . Highest-Rated Group . | . . . . . Highest-Rated Ally . | . . . . . Total Orders . | . . . . . Ally Attacks . | . . . . . Total Damage . | . . . . . Kills . | . . . . . Allies Corrupted 5 | . . 5 . . Allies Melted . | . . . . . Intel | -11 -10 -10 -9 -8 ------- Run | Yrd Mat Min Mat Mat Robot Analysis Total . | . . . . . Derelict Logs Recovered 1 | . . 1 . . Drone Launches 6 | . . 6 . . Drone Recoveries . | . . . . . Exploration | -11 -10 -10 -9 -8 ------------- Run | Yrd Mat Min Mat Mat Turns Passed 2062 | 200 368 615 667 212 Spaces Moved 848 | 74 189 266 235 84 Core 65 | 27 . . . 38 Treads 137 | . . . 94 43 Legs 646 | 47 189 266 141 3 Wheels . | . . . . . Hover . | . . . . . Flight . | . . . . . Fastest Speed 50 | 50 120 190 160 50 Average Speed 184 | 94 162 190 229 173 Slowest Speed 550 | 120 190 190 260 550 Overloaded Moves . | . . . . . Propulsion Burnouts . | . . . . . Robots Hopped . | . . . . . Cave-ins Triggered . | . . . . . Exploration Rate (%) 30 | 7 29 84 21 9 Regions Visited 4 Branch Regions 1 Pre-discovered Areas 1 | . . 1 . . Known Exits Taken . | . . . . . Unknown Exits Taken 4 | 1 1 1 1 . Scrap Searched . | . . . . . Spaces Dug . | . . . . . Terrain Destroyed 20 | . 10 . . 10 Melee . | . . . . . Projectile . | . . . . . AOE 20 | . 10 . . 10 Terrain Rammed . | . . . . . Walls Destroyed . | . . . . . Machines Disabled . | . . . . . Actions | -11 -10 -10 -9 -8 --------- Run | Yrd Mat Min Mat Mat Total 1230 | 193 233 345 333 126 Wait 197 | 84 19 36 45 13 Move 844 | 73 188 265 234 84 Hop . | . . . . . Pick Up 36 | 11 8 10 7 . Fast Attach 7 | . 2 . 5 . Attach 31 | 10 2 4 7 8 Detach 16 | 5 2 1 7 1 Swap 6 | . 3 3 . . Drop 19 | 1 1 8 9 . Fire 67 | 9 8 18 19 13 Melee . | . . . . . Ram 7 | . . . . 7 Kick . | . . . . . Crush . | . . . . . Escape Stasis . | . . . . . Rewire . | . . . . . Trap . | . . . . . Miscellaneous . | . . . . . Route ------- -11/Scrapyard -10/Materials -10/Mines -9/Materials -8/Materials History --------- Turn | Location | Event 2 | -11/Scrapyard | Met Revision 17 68 | -11/Scrapyard | Discovered new exit (range 8) 201 | -11/Scrapyard | Entered Materials 301 | -10/Materials | Build established: Mutant 542 | -10/Materials | Discovered new exit (range 10) 569 | -10/Materials | Entered Mines 757 | -10/Mines | Learned location of Zion (-7) 823 | -10/Mines | Found the Drone Emporium 832 | -10/Mines | Found Prototype Device 853 | -10/Mines | Identified Splice Drone Bay 1080 | -10/Mines | Excavation squad dispatched 1080 | -10/Mines | A large section of the Mines collapsed 1113 | -10/Mines | Lost 6 allies 1122 | -10/Mines | Core integrity fell below 50% 1153 | -10/Mines | Discovered new exit (range 6) 1184 | -10/Mines | Entered Materials 1184 | -9/Materials | Evolved 2 slots: Power x1, Utility x1 1455 | -9/Materials | Build established: Scavenger-Mutant 1686 | -9/Materials | Discovered new exit (range 3) 1851 | -9/Materials | Entered another Materials area 1851 | -8/Materials | Evolved 2 slots: Utility x1, Weapon x1 2005 | -8/Materials | Core integrity fell below 50% 2050 | -8/Materials | Lost 14 parts (3p4n4u3w) 2059 | -8/Materials | Core integrity fell below 20% 2063 | -8/Materials | Destroyed by G-47 Trooper with Particle Gun Last Messages --------------- 02014_ R-06 Scavenger collects Sml. Matter Pod. 02015_ U-05 Engineer builds a Wall. 02016_ Power failure, Imp. Ion Engine shutdown. 02017_ U-05 Engineer lays Concrete. 02018_ U-05 Engineer builds a Wall. 02019_ Imp. Ion Engine destroyed. 02019_ U-05 Engineer lays Concrete. 02045_ W1& 02061_ System corrupted: Matter fused (-10). 02061_ Acquired 2 matter. 02061_ Slammed into G-47 Trooper. 02062_ Acquired 2 matter. 02062_ Acquired 1 matter. Map ----- +----------------------------------------------------+ | ?????????????????????????????????????????????????? | | ?????????????????????????????????????????????????? | | ?????????????????????????????????????????????????? | | ?????????????????????????????????????????????????? | | ????####?????????????????????????????????????????? | | ????# ?????????????????????????????????????????? | | ????# ?????????????????????????????????????????? | | ????# ?????????????????????????????????????????? | | ????# #????????????????????????????????????????? | | ????# #????????????????????????????????????????? | | ????# #????????????????????#???????????????????? | | ????# #??????????????????? #???????????????????? | | ###?# #?????????????????? #???????????????????? | | # #????????????????? #???????????????????? | | ! #^ ####?????????????# ##??????????????????? | | ############+### ###????????????????? | | % ! ?????????????????? | | "T" [! T ?????????????????? | | """ ???????????????? | | #### ######### ### #??????????????????? | | ???# # ???????# #??????????????????????????? | | ???## # ???????# #??????????????????????????? | | ????# + "T??????# #??????????????????????????? | | ????# # ??????# #??????????????????????????? | | ????# #####?????# ##########?????????????????? | | ????# ########### # @g #?????????????????? | | ????# #gg""""" #?????????????????? | | ??? + # """"" #?????????????????? | | ????# # """""b#?????????????????? | | ????# ########### + """"" #?????????????????? | | ????# #?????????# # """"" #?????????????????? | | ????# #?????????# # """"" #?????????????????? | | ????# #?????????# # """"" #?????????????????? | | ???? #?????????##### #?????????????????? | | ??? #?????????????##########?????????????????? | | ?? ????????????????????????????????????????? | | ?########????????????????????????????????????????? | | ?????????????????????????????????????????????????? | | ?????????????????????????????????????????????????? | | ?????????????????????????????????????????????????? | | ?????????????????????????????????????????????????? | | ?????????????????????????????????????????????????? | | ?????????????????????????????????????????????????? | | ?????????????????????????????????????????????????? | | ?????????????????????????????????????????????????? | | ?????????????????????????????????????????????????? | | | | | | | | | +----------------------------------------------------+ Best States ------------- Heat Dissipation 45 Energy Generation 23 Energy Capacity 405 Matter Stores 300 Matter Capacity 500 Sight Range 18 Terrain Scan Range 14 Terrain Scan Density 10 Armor Coverage 150 Evasion (%) 55 Targeting Accuracy 5 Recoil Reduction 2 Item Schematics ----------------- None Robot Schematics ------------------ None Fabricated ------------ Nothing Alien Tech Used ----------------- None Achievements -------------- Release The Drones! Risk Taker Challenges ------------ None Game ------ Seed EtherialWaveArchive Manual? 0 Play Time 00:24:04 Cumulative 1.7 hours Start 2024.09.28 @ 23:24:19 End 2024.09.30 @ 14:05:15 Sessions 2 Manual Loads 0 Difficulty Rogue Special Mode None Game No. 8 Rogue 8 Adventurer 0 Explorer 0 Win Type - Total 0 Types 0/0/0/0/0/0/0/0/0 Lore% 0 Gallery% 7 Achievement% 6 Wizard Run 0 Options --------- Layout 1 ASCII 0 Keyboard 1 Movement Numpad Keybinds 0 Fullscreen 2 Font 32/SmallcapsGlow Map View 50x35 Zoom Use 0% Tactical HUD 1 Map Filters NONE Filters NONE Steam 1 RUN: 471ea31e-a872-4cfa-be16-e0e663137a53